lending/lending_fUSD_20250808
["ID","MTS","AMOUNT","RATE_DAILY","PERIOD"]
[377999678,1754661036425,-825.03,0.00018758,2]
[377999679,1754661036434,-646.68,0.00018758,2]
[377999680,1754661036444,-400.0,0.00018758,2]
[377999681,1754661036455,-400.0,0.00018758,2]
[377999682,1754661036465,-510.97,0.00018758,2]
[377999683,1754661036474,-400.0,0.00018758,2]
[377999684,1754661036483,-400.0,0.00018758,2]
[377999685,1754661036493,-423.89,0.00018758,2]
[377999686,1754661036502,-561.87,0.00018758,2]
[377999687,1754661036512,-400.0,0.00018758,2]
[377999688,1754661036522,-400.0,0.00018758,2]
[377999689,1754661036532,-645.25,0.00018758,2]
[377999690,1754661036542,-400.0,0.00018758,2]
[377999691,1754661036551,-400.0,0.00018758,2]
[377999692,1754661036560,-517.93,0.00018758,2]
[377999693,1754661036572,-400.0,0.00018758,2]
[377999694,1754661036582,-400.0,0.00018758,2]
[377999695,1754661036591,-509.59,0.00018758,2]
[377999696,1754661036600,-460.79,0.00018758,2]
[377999697,1754661036609,-400.0,0.00018758,2]
[377999698,1754661036619,-400.0,0.00018758,2]
[377999699,1754661036629,-701.35,0.00018758,2]
[377999700,1754661036638,-443.01,0.00018758,2]
[377999701,1754661036647,-608.27,0.00018758,2]
[377999702,1754661036656,-400.0,0.00018758,2]
[377999703,1754661036666,-400.0,0.00018758,2]
[377999704,1754661036677,-400.0,0.00018758,2]
[377999705,1754661036686,-755.24,0.00018758,2]
[377999706,1754661036694,-400.0,0.00018758,2]
[377999707,1754661036705,-400.0,0.00018758,2]
[377999708,1754661036715,-400.0,0.00018758,2]
[377999709,1754661036724,-497.58,0.00018758,2]
[377999710,1754661036734,-530.59,0.00018758,2]
[377999711,1754661036744,-400.0,0.00018758,2]
[377999712,1754661036753,-520.54,0.00018758,2]
[377999713,1754661036763,-400.0,0.00018758,2]
[377999714,1754661036772,-424.76,0.00018758,2]
[377999715,1754661036782,-614.31,0.00018758,2]
[377999716,1754661036792,-775.57,0.00018758,2]
[377999717,1754661036801,-654.73,0.00018758,2]
[377999718,1754661036811,-532.75,0.00018758,2]
[377999719,1754661036821,-400.0,0.00018758,2]
[377999720,1754661036831,-400.0,0.00018758,2]
[377999721,1754661036840,-551.4,0.00018758,2]
[377999722,1754661036850,-616.59,0.00018758,2]
[377999723,1754661036859,-426.79,0.00018758,2]
[377999724,1754661036869,-400.0,0.00018758,2]
[377999725,1754661036878,-400.0,0.00018758,2]
[377999726,1754661036888,-596.19,0.00018758,2]
[377999727,1754661036898,-400.0,0.00018758,2]
[377999728,1754661036907,-674.66,0.00018758,2]
[377999729,1754661036917,-400.0,0.00018758,2]
[377999730,1754661036926,-400.0,0.00018758,2]
[377999731,1754661036936,-400.0,0.00018758,2]
[377999732,1754661036946,-611.12,0.00018758,2]
[377999733,1754661036958,-669.48,0.00018758,2]
[377999734,1754661036968,-400.0,0.00018758,2]
[377999735,1754661036978,-400.0,0.00018758,2]
[377999736,1754661036988,-514.16,0.00018758,2]
[377999737,1754661036998,-606.56,0.00018758,2]
[377999738,1754661037008,-400.0,0.00018758,2]
[377999739,1754661037018,-544.44,0.00018758,2]
[377999740,1754661037028,-878.83,0.00018758,2]
[377999741,1754661037037,-400.0,0.00018758,2]
[377999742,1754661037047,-456.74,0.00018758,2]
[377999743,1754661037056,-855.46,0.00018758,2]
[377999744,1754661037066,-400.0,0.00018758,2]
[377999745,1754661037075,-400.0,0.00018758,2]
[377999746,1754661037085,-544.58,0.00018758,2]
[377999747,1754661037095,-623.85,0.00018758,2]
[377999748,1754661037105,-438.33,0.00018758,2]
[377999749,1754661037114,-400.0,0.00018758,2]
[377999750,1754661037124,-435.33,0.00018758,2]
[377999751,1754661037134,-1077.01,0.00018758,2]
[377999752,1754661037143,-400.0,0.00018758,2]
[377999753,1754661037153,-788.49,0.00018758,2]
[377999754,1754661037163,-400.0,0.00018758,2]
[377999755,1754661037172,-526.91,0.00018758,2]
[377999756,1754661037182,-400.0,0.00018758,2]
[377999757,1754661037191,-400.0,0.00018758,2]
[377999758,1754661037204,-400.0,0.00018758,2]
[377999759,1754661037214,-440.74,0.00018758,2]
[377999760,1754661037223,-1026.88,0.00018758,2]
[377999761,1754661037233,-858.81,0.00018758,2]
[377999762,1754661037242,-17.41731605,0.00018758,2]
[377999773,1754661039169,-3149.41488353,0.00018658,2]
[377999774,1754661039178,-1000.0,0.00018757,2]
[377999775,1754661039187,-660.97268395,0.00018758,2]
[377999776,1754661039196,-501.48,0.00018758,2]
[377999777,1754661039208,-837.69,0.00018758,2]
[377999778,1754661039217,-468.8,0.00018758,2]
[377999779,1754661039226,-917.94,0.00018758,2]
[377999780,1754661039235,-400.0,0.00018758,2]
[377999781,1754661039244,-475.33,0.00018758,2]
[377999782,1754661039253,-400.0,0.00018758,2]
[377999783,1754661039262,-400.0,0.00018758,2]
[377999784,1754661039271,-590.99,0.00018758,2]
[377999785,1754661039282,-451.41,0.00018758,2]
[377999786,1754661039291,-400.0,0.00018758,2]
[377999787,1754661039300,-400.0,0.00018758,2]
[377999788,1754661039309,-590.62,0.00018758,2]
[377999789,1754661039318,-400.0,0.00018758,2]
[377999790,1754661039327,-624.87632521,0.00018758,2]
[377999791,1754661039433,-341.38367479,0.00018758,2]
[377999792,1754661039442,-37.2045654,0.00018758,2]
[377999793,1754661039578,-362.7954346,0.00018758,2]
[377999794,1754661039588,-400.0,0.00018758,2]
[377999795,1754661039598,-400.0,0.00018758,2]
[377999796,1754661039608,-400.0,0.00018758,2]
[377999797,1754661039617,-400.0,0.00018758,2]
[377999798,1754661039626,-51.4895624,0.00018758,2]
[377999799,1754661039638,-348.5104376,0.00018758,2]
[377999800,1754661039648,-692.68,0.00018758,2]
[377999801,1754661039657,-126.9095624,0.00018758,2]
[377999802,1754661039669,-273.0904376,0.00018758,2]
[377999803,1754661039679,-707.71,0.00018758,2]
[377999804,1754661039689,-400.0,0.00018758,2]
[377999805,1754661039698,-553.6,0.00018758,2]
[377999806,1754661039712,-400.0,0.00018758,2]
[377999807,1754661039721,-171.744503,0.00018758,2]
[377999808,1754661039730,-400.0,0.00018758,2]
[377999809,1754661039739,-601.7,0.00018758,2]
[377999810,1754661039748,-684.33,0.00018758,2]
[377999811,1754661039758,-767.64,0.00018758,2]
[377999812,1754661039767,-400.0,0.00018758,2]
[377999813,1754661039777,-431.94,0.00018758,2]
[377999814,1754661039786,-400.0,0.00018758,2]
[377999815,1754661039796,-588.49,0.00018758,2]
[377999816,1754661039805,-400.0,0.00018758,2]
[377999817,1754661039814,-669.37,0.00018758,2]
[377999818,1754661039823,-74.98505939,0.00018758,2]
[377999831,1754661040337,-400.0,0.00018757,2]
[377999833,1754661040347,-400.0,0.00018757,2]
[377999835,1754661040356,-325.01494061,0.00018758,2]
[377999836,1754661040365,-400.0,0.00018758,2]
[377999837,1754661040373,-564.38505939,0.00018758,2]
[377999838,1754661040506,-277.57494061,0.00018758,2]
[377999839,1754661040516,-853.01,0.00018758,2]
[377999840,1754661040525,-223.49420135,0.00018758,2]
[377999841,1754661040536,-815.39579865,0.00018758,2]
[377999842,1754661040546,-400.0,0.00018758,2]
[377999843,1754661040555,-508.61,0.00018758,2]
[377999844,1754661040564,-400.0,0.00018758,2]
[377999845,1754661040575,-543.71,0.00018758,2]
[377999846,1754661040583,-400.0,0.00018758,2]
[377999847,1754661040593,-203.294251,0.00018758,2]
[377999848,1754661040602,-400.0,0.00018758,2]
[377999849,1754661040611,-781.38,0.00018758,2]
[377999850,1754661040621,-457.61,0.00018758,2]
[377999851,1754661040630,-583.72,0.00018758,2]
[377999852,1754661040642,-400.0,0.00018758,2]
[377999853,1754661040651,-404.25,0.00018758,2]
[377999854,1754661040660,-245.857921,0.00018758,2]
[377999855,1754661040669,-400.0,0.00018758,2]
[377999856,1754661040679,-400.0,0.00018758,2]
[377999857,1754661040688,-400.0,0.00018758,2]
[377999858,1754661040697,-639.42,0.00018758,2]
[377999859,1754661040710,-400.0,0.00018758,2]
[377999860,1754661040720,-563.09,0.00018758,2]
[377999861,1754661040730,-3273.75,0.00018758,2]
[377999862,1754661040740,-400.0,0.00018758,2]
[377999863,1754661040750,-524.85,0.00018758,2]
[377999864,1754661040760,-400.0,0.00018758,2]
[377999865,1754661040770,-634.98,0.00018758,2]
[377999866,1754661040780,-619.35,0.00018758,2]
[377999867,1754661040790,-400.0,0.00018758,2]
[377999868,1754661040800,-400.0,0.00018758,2]
[377999869,1754661040810,-400.0,0.00018758,2]
[377999870,1754661040820,-400.0,0.00018758,2]
[377999871,1754661040830,-400.0,0.00018758,2]
[377999872,1754661040840,-295.25614355,0.00018758,2]
[377999873,1754661040850,-449.62,0.00018758,2]
[377999874,1754661040860,-507.45,0.00018758,2]
[377999875,1754661040869,-400.0,0.00018758,2]
[377999876,1754661040879,-400.0,0.00018758,2]
[377999877,1754661040889,-400.0,0.00018758,2]
[377999878,1754661040899,-983.16,0.00018758,2]
[377999879,1754661040909,-400.0,0.00018758,2]
[377999880,1754661040920,-460.26,0.00018758,2]
[377999881,1754661040929,-485.12,0.00018758,2]
[377999882,1754661040940,-400.0,0.00018758,2]
[377999883,1754661040951,-1248.21,0.00018758,2]
[377999884,1754661040965,-400.0,0.00018758,2]
[377999885,1754661040975,-400.0,0.00018758,2]
[377999886,1754661040985,-400.0,0.00018758,2]
[377999887,1754661040995,-510.45,0.00018758,2]
[377999888,1754661041005,-400.0,0.00018758,2]
[377999889,1754661041015,-400.0,0.00018758,2]
[377999890,1754661041024,-541.84,0.00018758,2]
[377999891,1754661041035,-400.0,0.00018758,2]
[377999892,1754661041044,-597.66,0.00018758,2]
[377999893,1754661041054,-445.11,0.00018758,2]
[377999894,1754661041063,-476.84,0.00018758,2]
[377999895,1754661041073,-405.2,0.00018758,2]
[377999896,1754661041083,-676.92,0.00018758,2]
[377999897,1754661041093,-400.0,0.00018758,2]
[377999898,1754661041102,-510.38,0.00018758,2]
[377999899,1754661041112,-549.37,0.00018758,2]
[377999900,1754661041121,-515.16,0.00018758,2]
[377999901,1754661041131,-1919.22,0.00018758,2]
[377999902,1754661041141,-585.61,0.00018758,2]
[377999903,1754661041150,-775.84,0.00018758,2]
[377999904,1754661041160,-400.0,0.00018758,2]
[377999905,1754661041170,-400.0,0.00018758,2]
[377999906,1754661041179,-620.26,0.00018758,2]
[377999907,1754661041189,-703.1,0.00018758,2]
[377999908,1754661041198,-400.38,0.00018758,2]
[377999909,1754661041213,-464.91,0.00018758,2]
[377999910,1754661041222,-587.99,0.00018758,2]
[377999911,1754661041231,-400.0,0.00018758,2]
[377999912,1754661041241,-431.35,0.00018758,2]
[377999913,1754661041251,-400.0,0.00018758,2]
[377999914,1754661041261,-400.0,0.00018758,2]
[377999915,1754661041270,-658.07,0.00018758,2]
[377999916,1754661041280,-400.0,0.00018758,2]
[377999917,1754661041289,-717.88,0.00018758,2]
[377999918,1754661041299,-400.0,0.00018758,2]
[377999919,1754661041309,-400.0,0.00018758,2]
[377999920,1754661041318,-822.3,0.00018758,2]
[377999921,1754661041328,-270.31726893,0.00018758,2]
[377999922,1754661041338,-901.65,0.00018758,2]
[377999923,1754661041348,-652.64,0.00018758,2]
[377999924,1754661041357,-242.59565278,0.00018758,2]
[377999925,1754661041367,-722.1,0.00018758,2]
[377999926,1754661041376,-400.0,0.00018758,2]
[377999927,1754661041386,-400.0,0.00018758,2]
[377999928,1754661041395,-562.42,0.00018758,2]
[377999929,1754661041405,-719.83,0.00018758,2]
[377999930,1754661041414,-425.44,0.00018758,2]
[377999931,1754661041423,-537.94,0.00018758,2]
[377999932,1754661041433,-671.14,0.00018758,2]
[377999933,1754661041443,-430.08901502,0.00018758,2]
[377999934,1754661041456,-903.81,0.00018758,2]
[377999935,1754661041465,-1584.76,0.00018758,2]
[377999936,1754661041475,-400.0,0.00018758,2]
[377999937,1754661041484,-854.3,0.00018758,2]
[377999938,1754661041494,-936.03,0.00018758,2]
[377999939,1754661041503,-400.0,0.00018758,2]
[377999940,1754661041513,-1019.58,0.00018758,2]
[377999941,1754661041522,-510.72,0.00018758,2]
[377999942,1754661041532,-534.23,0.00018758,2]
[377999943,1754661041542,-527.06,0.00018758,2]
[377999944,1754661041551,-820.31,0.00018758,2]
[377999945,1754661041561,-581.87,0.00018758,2]
[377999946,1754661041573,-547.56,0.00018758,2]
[377999947,1754661041583,-863.6,0.00018758,2]
[377999948,1754661041594,-505.3,0.00018758,2]
[377999949,1754661041604,-482.31,0.00018758,2]
[377999950,1754661041615,-400.0,0.00018758,2]
[377999951,1754661041624,-400.0,0.00018758,2]
[377999952,1754661041634,-400.0,0.00018758,2]
[377999953,1754661041645,-400.0,0.00018758,2]
[377999954,1754661041655,-400.0,0.00018758,2]
[377999955,1754661041664,-1327.82,0.00018758,2]
[377999956,1754661041673,-739.82,0.00018758,2]
[377999957,1754661041684,-484.44,0.00018758,2]
[377999958,1754661041693,-400.0,0.00018758,2]
[377999959,1754661041705,-531.81,0.00018758,2]
[377999960,1754661041715,-400.0,0.00018758,2]
[377999961,1754661041725,-400.0,0.00018758,2]
[377999962,1754661041735,-330.85,0.00018758,2]
[377999963,1754661041745,-872.35,0.00018758,2]
[377999964,1754661041755,-608.28,0.00018758,2]
[377999965,1754661041765,-400.0,0.00018758,2]
[377999966,1754661041774,-876.6,0.00018758,2]
[377999967,1754661041784,-627.11,0.00018758,2]
[377999968,1754661041794,-400.0,0.00018758,2]
[377999969,1754661041804,-663.33,0.00018758,2]
[377999970,1754661041814,-608.17,0.00018758,2]
[377999971,1754661041824,-562.71,0.00018758,2]
[377999972,1754661041833,-400.0,0.00018758,2]
[377999973,1754661041844,-400.0,0.00018758,2]
[377999974,1754661041853,-400.0,0.00018758,2]
[377999975,1754661041863,-685.37,0.00018758,2]
[377999976,1754661041873,-448.93,0.00018758,2]
[377999977,1754661041883,-587.83,0.00018758,2]
[377999978,1754661041893,-400.0,0.00018758,2]
[377999979,1754661041903,-703.35,0.00018758,2]
[377999980,1754661041913,-400.0,0.00018758,2]
[377999981,1754661041924,-443.63,0.00018758,2]
[377999982,1754661041933,-400.0,0.00018758,2]
[377999983,1754661041943,-400.0,0.00018758,2]
[377999984,1754661041955,-400.0,0.00018758,2]
[377999985,1754661041965,-510.48,0.00018758,2]
[377999986,1754661041975,-400.0,0.00018758,2]
[377999987,1754661041984,-400.0,0.00018758,2]
[377999988,1754661041993,-400.0,0.00018758,2]
[377999989,1754661042003,-400.0,0.00018758,2]
[377999990,1754661042013,-508.14,0.00018758,2]
[377999991,1754661042023,-613.22,0.00018758,2]
[377999992,1754661042032,-400.0,0.00018758,2]
[377999993,1754661042042,-400.0,0.00018758,2]
[377999994,1754661042052,-400.0,0.00018758,2]
[377999995,1754661042062,-575.82,0.00018758,2]
[377999996,1754661042072,-519.28,0.00018758,2]
[377999997,1754661042082,-647.98,0.00018758,2]
[377999998,1754661042092,-686.33,0.00018758,2]
[377999999,1754661042102,-644.82,0.00018758,2]
[378000000,1754661042111,-505.55,0.00018758,2]
[378000001,1754661042121,-591.16,0.00018758,2]
[378000002,1754661042131,-590.45,0.00018758,2]
[378000003,1754661042141,-636.29,0.00018758,2]
[378000004,1754661042150,-400.0,0.00018758,2]
[378000005,1754661042161,-516.42,0.00018758,2]
[378000006,1754661042171,-626.75,0.00018758,2]
[378000007,1754661042180,-957.04,0.00018758,2]
[378000008,1754661042190,-400.0,0.00018758,2]
[378000009,1754661042200,-1068.55,0.00018758,2]
[378000010,1754661042211,-400.0,0.00018758,2]
[378000011,1754661042221,-400.0,0.00018758,2]
[378000012,1754661042231,-1090.69,0.00018758,2]
[378000013,1754661042240,-400.0,0.00018758,2]
[378000014,1754661042250,-488.23,0.00018758,2]
[378000015,1754661042260,-541.84,0.00018758,2]
[378000016,1754661042269,-963.02,0.00018758,2]
[378000017,1754661042279,-697.03,0.00018758,2]
[378000018,1754661042289,-478.68,0.00018758,2]
[378000019,1754661042300,-676.85,0.00018758,2]
[378000020,1754661042309,-400.0,0.00018758,2]
[378000021,1754661042319,-400.0,0.00018758,2]
[378000022,1754661042328,-2272.98,0.00018758,2]
[378000023,1754661042337,-400.0,0.00018758,2]
[378000024,1754661042347,-400.0,0.00018758,2]
[378000025,1754661042357,-400.0,0.00018759,2]
[378000026,1754661042367,-400.0,0.00018759,2]
[378000027,1754661042376,-400.0,0.00018759,2]
[378000028,1754661042386,-649.14,0.00018759,2]
[378000029,1754661042396,-607.23,0.00018759,2]
[378000030,1754661042405,-610.85,0.00018759,2]
[378000031,1754661042415,-400.0,0.00018759,2]
[378000032,1754661042425,-400.0,0.00018759,2]
[378000033,1754661042434,-400.0,0.00018759,2]
[378000034,1754661042444,-990.7,0.00018759,2]
[378000035,1754661042454,-870.85,0.00018759,2]
[378000036,1754661042464,-578.77,0.00018759,2]
[378000037,1754661042474,-609.23,0.00018759,2]
[378000038,1754661042484,-605.15,0.00018759,2]
[378000039,1754661042494,-606.04,0.00018759,2]
[378000040,1754661042505,-400.0,0.00018759,2]
[378000041,1754661042515,-664.01,0.00018759,2]
[378000042,1754661042525,-781.08,0.00018759,2]
[378000043,1754661042536,-1192.57,0.00018759,2]
[378000044,1754661042545,-435.57,0.00018759,2]
[378000045,1754661042556,-889.66,0.00018759,2]
[378000046,1754661042570,-829.01,0.00018759,2]
[378000047,1754661042579,-972.28,0.00018759,2]
[378000048,1754661042590,-564.43,0.00018759,2]
[378000049,1754661042600,-715.93,0.00018759,2]
[378000050,1754661042610,-672.09,0.00018759,2]
[378000051,1754661042620,-400.0,0.00018759,2]
[378000052,1754661042630,-743.15,0.00018759,2]
[378000053,1754661042639,-400.0,0.00018759,2]
[378000054,1754661042650,-400.0,0.00018759,2]
[378000055,1754661042660,-400.0,0.00018759,2]
[378000056,1754661042670,-556.83,0.00018759,2]
[378000057,1754661042681,-945.85,0.00018759,2]
[378000058,1754661042691,-901.4,0.00018759,2]
[378000059,1754661042701,-531.96,0.00018759,2]
[378000060,1754661042716,-400.0,0.00018759,2]
[378000061,1754661042726,-509.84,0.00018759,2]
[378000062,1754661042736,-455.65,0.00018759,2]
[378000063,1754661042746,-713.7,0.00018759,2]
[378000066,1754661043027,-546.74,0.00018759,2]
[378000069,1754661043048,-400.0,0.00018759,2]
[378000070,1754661043057,-597.87,0.00018759,2]
[378000071,1754661043066,-400.0,0.00018759,2]
[378000072,1754661043075,-400.0,0.00018759,2]
[378000074,1754661043085,-176.60242016,0.0001876,2]
[378000075,1754661043094,-500.0,0.00018761,2]
[378000076,1754661043103,-500.0,0.00018761,2]
[378000077,1754661043113,-150.0,0.00018761,2]
[378000078,1754661043122,-150.0,0.00018761,2]
[378000080,1754661043131,-150.0,0.00018761,2]
[378000082,1754661043141,-846.43902094,0.0001877,2]
[378000083,1754661043150,-150.0,0.00018776,2]
[378000085,1754661043159,-160.50792578,0.00018783,2]
[378000086,1754661043168,-150.0,0.00018786,2]
[378000087,1754661043177,-150.0,0.00018788,2]
[378000088,1754661043186,-150.0,0.00018797,2]
[378000089,1754661043196,-800.0,0.000188,6]
[378000090,1754661043208,-500.0,0.00018802,2]
[378000091,1754661043217,-301.55365,0.0001881,2]
[378000092,1754661043227,-3539.11633479,0.00018813,2]
[378000093,1754661043236,-963.787,0.00018814,2]
[378000094,1754661043246,-153.214,0.00018814,2]
[378000095,1754661043255,-3149.41488349,0.00018841,2]
[378000096,1754661043264,-500.0,0.00018857,2]
[378000097,1754661043273,-150.0,0.00018872,2]
[378000099,1754661043282,-300.0,0.00018883,2]
[378000100,1754661043292,-236.38841812,0.00018894,2]
[378000101,1754661043301,-800.0,0.000189,2]
[378000102,1754661043310,-165.43627044,0.000189,2]
[378000104,1754661043319,-1100.0,0.000189,6]
[378000105,1754661043328,-681.41402414,0.000189,2]
[378000106,1754661043337,-233.0,0.0001891,2]
[378000107,1754661043346,-500.0,0.00018912,2]
[378000108,1754661043355,-301.55365,0.0001892,2]
[378000109,1754661043364,-150.0,0.00018921,2]
[378000110,1754661043373,-150.0,0.00018921,2]
[378000111,1754661043382,-176.72,0.00018927,2]
[378000112,1754661043391,-150.0,0.00018933,2]
[378000113,1754661043400,-160.0,0.00018937,2]
[378000114,1754661043409,-211.62674257,0.00018941,2]
[378000115,1754661043418,-457.64618948,0.00018941,2]
[378000116,1754661043427,-842.44706758,0.00018941,2]
[378000117,1754661043436,-150.0,0.00018944,2]
[378000118,1754661043445,-170.83,0.00018956,2]
[378000119,1754661043457,-150.0,0.00018959,2]
[378000120,1754661043467,-500.0,0.00018967,2]
[378000121,1754661043476,-150.0,0.00018971,2]
[378000122,1754661043485,-500.0,0.00018973,2]
[378000123,1754661043494,-500.0,0.00018973,2]
[378000124,1754661043504,-500.0,0.00018973,2]
[378000125,1754661043513,-159.03229537,0.00018973,2]
[378000126,1754661043522,-502.79524056,0.00018973,2]
[378000127,1754661043531,-502.23686703,0.00018973,2]
[378000128,1754661043541,-500.0,0.00018973,2]
[378000129,1754661043550,-500.0,0.00018973,2]
[378000130,1754661043560,-500.0,0.00018973,2]
[378000131,1754661043573,-150.0,0.00018978,2]
[378000132,1754661043582,-400.0,0.00018988,2]
[378000133,1754661043591,-400.0,0.00018988,2]
[378000134,1754661043601,-683.55,0.00018988,2]
[378000135,1754661043610,-529.57,0.00018988,2]
[378000136,1754661043620,-953.86,0.00018988,2]
[378000137,1754661043630,-998.21,0.00018988,2]
[378000138,1754661043639,-1239.84,0.00018988,2]
[378000139,1754661043649,-9358.19,0.00018988,2]
[378000141,1754661043658,-670.17,0.00018988,2]
[378000142,1754661043667,-400.0,0.00018988,2]
[378000143,1754661043678,-400.0,0.00018988,2]
[378000144,1754661043688,-853.44,0.00018988,2]
[378000145,1754661043697,-400.0,0.00018988,2]
[378000146,1754661043709,-474.84,0.00018988,2]
[378000147,1754661043718,-1497.74,0.00018988,2]
[378000148,1754661043727,-150.0,0.0001899,2]
[378000149,1754661043737,-150.0,0.0001899,2]
[378000150,1754661043746,-476.6,0.00018996,2]
[378000151,1754661043755,-679.48,0.00018996,2]
[378000152,1754661043765,-400.0,0.00018996,2]
[378000153,1754661043774,-858.8593935,0.00018997,2]
[378000154,1754661043784,-1888.6498839,0.00018997,2]
[378000155,1754661043793,-264.7245424,0.00018997,2]
[378000156,1754661043802,-31955.0494924,0.00018997,2]
[378000157,1754661043812,-400.0,0.00018998,2]
[378000158,1754661043821,-400.0,0.00018998,2]
[378000159,1754661043830,-400.0,0.00018998,2]
[378000160,1754661043840,-400.0,0.00018998,2]
[378000161,1754661043849,-400.0,0.00018998,2]
[378000162,1754661043859,-256.16914235,0.00018999,2]
[378000163,1754661043869,-400.0,0.00018999,2]
[378000164,1754661043878,-400.0,0.00018999,2]
[378000165,1754661043888,-588.71,0.00018999,2]
[378000166,1754661043897,-482.69,0.00018999,2]
[378000167,1754661043907,-400.0,0.00018999,2]
[378000168,1754661043917,-435.89,0.00018999,2]
[378000169,1754661043926,-400.0,0.00018999,2]
[378000170,1754661043935,-621.47,0.00018999,2]
[378000172,1754661043945,-608.78,0.00018999,2]
[378000173,1754661043956,-400.0,0.00018999,2]
[378000174,1754661043966,-436.83,0.00018999,2]
[378000175,1754661043976,-400.0,0.00018999,2]
[378000176,1754661043985,-400.0,0.00018999,2]
[378000177,1754661043995,-400.0,0.00018999,2]
[378000178,1754661044004,-400.0,0.00018999,2]
[378000179,1754661044014,-400.0,0.00018999,2]
[378000180,1754661044024,-400.0,0.00018999,2]
[378000181,1754661044033,-400.0,0.00018999,2]
[378000182,1754661044043,-400.0,0.00018999,2]
[378000183,1754661044052,-400.0,0.00018999,2]
[378000184,1754661044061,-222.22675063,0.00018999,2]
[378000185,1754661044071,-400.0,0.00018999,2]
[378000186,1754661044080,-400.0,0.00018999,2]
[378000187,1754661044090,-400.0,0.00018999,2]
[378000188,1754661044099,-400.0,0.00018999,2]
[378000189,1754661044108,-400.0,0.00018999,2]
[378000190,1754661044118,-400.0,0.00018999,2]
[378000191,1754661044127,-400.0,0.00018999,2]
[378000192,1754661044137,-400.0,0.00018999,2]
[378000193,1754661044146,-400.0,0.00018999,2]
[378000194,1754661044155,-400.0,0.00018999,2]
[378000195,1754661044164,-302.47,0.00018999,2]
[378000196,1754661044174,-560.23,0.00018999,2]
[378000197,1754661044183,-400.0,0.00018999,2]
[378000198,1754661044192,-2248.33,0.00018999,2]
[378000199,1754661044203,-400.0,0.00018999,2]
[378000200,1754661044212,-400.0,0.00018999,2]
[378000201,1754661044221,-1475.47,0.00018999,2]
[378000202,1754661044230,-835.63,0.00018999,2]
[378000203,1754661044239,-839.54,0.00018999,2]
[378000204,1754661044248,-400.0,0.00018999,2]
[378000205,1754661044258,-400.0,0.00018999,2]
[378000206,1754661044267,-4302.32,0.00018999,2]
[378000207,1754661044276,-919.8,0.00018999,2]
[378000208,1754661044285,-446.55,0.00018999,2]
[378000209,1754661044295,-1084.77,0.00018999,2]
[378000210,1754661044304,-908.67,0.00018999,2]
[378000211,1754661044313,-716.1,0.00018999,2]
[378000212,1754661044322,-1000.0,0.00018999,2]
[378000213,1754661044332,-1059.06,0.00018999,2]